[Event "Early-Titled-Tuesday-Blitz-May-07-2024"]
[Site "Chess.com"]
[Date "2024.05.07"]
[Round "4"]
[White "FontVella8"]
[Black "Rosh1610"]
[Result "1-0"]
[WhiteElo "2685"]
[BlackElo "2481"]
[TimeControl "180+1"]
[EndTime "8:38:52 PDT"]
[Termination "FontVella8 won by resignation"]

1. e4 {[%clk 0:03:00.9]} 1... c5 {[%clk 0:02:58.7]} 2. Nf3 {[%clk 0:03:00.4]}
2... d6 {[%clk 0:02:58.7]} 3. d4 {[%clk 0:03:00.5]} 3... cxd4 {[%clk 0:02:59.1]}
4. Nxd4 {[%clk 0:03:01.4]} 4... Nf6 {[%clk 0:02:59.5]} 5. f3 {[%clk 0:03:01.9]}
5... e5 {[%clk 0:02:58.6]} 6. Nb3 {[%clk 0:03:01.6]} 6... d5 {[%clk 0:02:58.8]}
7. Bg5 {[%clk 0:03:01.2]} 7... Be6 {[%clk 0:02:52.7]} 8. Bxf6 {[%clk 0:02:59.9]}
8... gxf6 {[%clk 0:02:53.6]} 9. exd5 {[%clk 0:03:00.4]} 9... Qxd5 {[%clk
0:02:53.3]} 10. Qxd5 {[%clk 0:03:00]} 10... Bxd5 {[%clk 0:02:54.2]} 11. Nc3
{[%clk 0:03:00.7]} 11... Bc6 {[%clk 0:02:52.4]} 12. O-O-O {[%clk 0:02:57.1]}
12... Nd7 {[%clk 0:02:52.7]} 13. Nb5 {[%clk 0:02:45.5]} 13... Bxb5 {[%clk
0:02:51.9]} 14. Bxb5 {[%clk 0:02:45.1]} 14... O-O-O {[%clk 0:02:51.8]} 15. Bc4
{[%clk 0:02:41.1]} 15... Bh6+ {[%clk 0:02:49.5]} 16. Kb1 {[%clk 0:02:40.3]}
16... Rhf8 {[%clk 0:02:47.4]} 17. Bd3 {[%clk 0:02:39.7]} 17... Rg8 {[%clk
0:02:42.4]} 18. Bf5 {[%clk 0:02:36.1]} 18... Kc7 {[%clk 0:02:42]} 19. g3 {[%clk
0:02:32.7]} 19... Rg7 {[%clk 0:02:34.8]} 20. Rd3 {[%clk 0:02:30.8]} 20... Nf8
{[%clk 0:02:31.6]} 21. Rxd8 {[%clk 0:02:25.4]} 21... Kxd8 {[%clk 0:02:32.5]} 22.
Rd1+ {[%clk 0:02:25.7]} 22... Kc7 {[%clk 0:02:32.9]} 23. Nc5 {[%clk 0:02:26.1]}
23... Rg5 {[%clk 0:02:15.3]} 24. g4 {[%clk 0:02:22.9]} 24... Rg7 {[%clk
0:02:01.1]} 25. h4 {[%clk 0:02:12.4]} 25... Bf4 {[%clk 0:01:51.3]} 26. Ne4
{[%clk 0:02:11.6]} 26... Ne6 {[%clk 0:01:30.8]} 27. Nxf6 {[%clk 0:02:09.2]}
27... Nd4 {[%clk 0:01:30.8]} 28. Ne8+ {[%clk 0:02:08.2]} 1-0

[Event "Early-Titled-Tuesday-Blitz-May-07-2024"]
[Site "Chess.com"]
[Date "2024.05.07"]
[Round "4"]
[White "vugarrasulov"]
[Black "MokshAD1603"]
[Result "1-0"]
[WhiteElo "2967"]
[BlackElo "2619"]
[TimeControl "180+1"]
[EndTime "8:39:08 PDT"]
[Termination "vugarrasulov won by resignation"]

1. c4 {[%clk 0:03:00.9]} 1... Nf6 {[%clk 0:02:47.1]} 2. Nf3 {[%clk 0:03:00.3]}
2... e6 {[%clk 0:02:44.6]} 3. g3 {[%clk 0:02:59.9]} 3... d5 {[%clk 0:02:44.7]}
4. Bg2 {[%clk 0:03:00.4]} 4... d4 {[%clk 0:02:44.1]} 5. O-O {[%clk 0:03:00.3]}
5... Nc6 {[%clk 0:02:44.3]} 6. d3 {[%clk 0:02:55.7]} 6... Bc5 {[%clk 0:02:42.5]}
7. Na3 {[%clk 0:02:51.7]} 7... O-O {[%clk 0:02:42]} 8. Nc2 {[%clk 0:02:52.4]}
8... a5 {[%clk 0:02:38.9]} 9. a3 {[%clk 0:02:51.2]} 9... e5 {[%clk 0:02:38.5]}
10. Bg5 {[%clk 0:02:49.5]} 10... h6 {[%clk 0:02:37.4]} 11. Bxf6 {[%clk
0:02:49.6]} 11... Qxf6 {[%clk 0:02:38.3]} 12. Nd2 {[%clk 0:02:47.9]} 12... Qe7
{[%clk 0:02:27.9]} 13. b3 {[%clk 0:02:39.4]} 13... Bd7 {[%clk 0:02:12.8]} 14.
Qc1 {[%clk 0:02:38.4]} 14... f5 {[%clk 0:02:09.5]} 15. Rb1 {[%clk 0:02:36.7]}
15... Ba7 {[%clk 0:01:44.5]} 16. b4 {[%clk 0:02:36.5]} 16... axb4 {[%clk
0:01:44.9]} 17. axb4 {[%clk 0:02:37.4]} 17... Rae8 {[%clk 0:01:40.3]} 18. b5
{[%clk 0:02:36.1]} 18... Na5 {[%clk 0:01:39.7]} 19. Ra1 {[%clk 0:02:33.5]} 19...
Bb6 {[%clk 0:01:39.2]} 20. Qa3 {[%clk 0:02:30.5]} 20... Qf6 {[%clk 0:01:28.9]}
21. c5 {[%clk 0:02:29.7]} 21... Bxb5 {[%clk 0:01:19.6]} 22. cxb6 {[%clk
0:02:30]} 22... cxb6 {[%clk 0:01:20.5]} 23. Qb4 {[%clk 0:02:23.9]} 23... Ba6
{[%clk 0:01:20.5]} 24. Nb3 {[%clk 0:02:23]} 24... Nxb3 {[%clk 0:01:18.9]} 25.
Qxb3+ {[%clk 0:02:23.9]} 25... Kh8 {[%clk 0:01:17.9]} 26. Nb4 {[%clk 0:02:24.2]}
26... Bb5 {[%clk 0:01:07.3]} 27. Nd5 {[%clk 0:02:22.7]} 27... Qc6 {[%clk
0:01:07.8]} 28. Rac1 {[%clk 0:02:18.3]} 28... Qd7 {[%clk 0:01:07.1]} 29. Nxb6
{[%clk 0:02:18.7]} 1-0

[Event "Early-Titled-Tuesday-Blitz-May-07-2024"]
[Site "Chess.com"]
[Date "2024.05.07"]
[Round "4"]
[White "kylnmd"]
[Black "KINGOF2SOAP"]
[Result "1-0"]
[WhiteElo "2253"]
[BlackElo "2421"]
[TimeControl "180+1"]
[EndTime "8:39:09 PDT"]
[Termination "kylnmd won by resignation"]

1. c4 {[%clk 0:02:55]} 1... g6 {[%clk 0:02:59.1]} 2. d4 {[%clk 0:02:54.7]} 2...
Bg7 {[%clk 0:02:59.3]} 3. Nc3 {[%clk 0:02:54.7]} 3... d6 {[%clk 0:02:59.6]} 4.
e4 {[%clk 0:02:53.9]} 4... Nf6 {[%clk 0:03:00]} 5. f3 {[%clk 0:02:53.7]} 5...
O-O {[%clk 0:03:00]} 6. Bg5 {[%clk 0:02:53.2]} 6... e5 {[%clk 0:02:59.6]} 7.
dxe5 {[%clk 0:02:52.8]} 7... dxe5 {[%clk 0:02:58.9]} 8. Qxd8 {[%clk 0:02:52.1]}
8... Rxd8 {[%clk 0:02:59.8]} 9. Nd5 {[%clk 0:02:51.7]} 9... Nbd7 {[%clk
0:02:49.8]} 10. Nxc7 {[%clk 0:02:50.3]} 10... Rb8 {[%clk 0:02:46.5]} 11. Nd5
{[%clk 0:02:47.9]} 11... b5 {[%clk 0:02:41.1]} 12. cxb5 {[%clk 0:02:44.8]} 12...
Bb7 {[%clk 0:02:41.1]} 13. Nxf6+ {[%clk 0:02:36.8]} 13... Nxf6 {[%clk 0:02:42]}
14. Ne2 {[%clk 0:02:32.3]} 14... h6 {[%clk 0:02:37.2]} 15. Be3 {[%clk
0:02:31.4]} 15... Ba8 {[%clk 0:02:28]} 16. Nc3 {[%clk 0:02:30.3]} 16... Rd7
{[%clk 0:02:22.6]} 17. Be2 {[%clk 0:02:27]} 17... Kh7 {[%clk 0:02:15.8]} 18. O-O
{[%clk 0:02:25.3]} 18... a6 {[%clk 0:02:06.1]} 19. a4 {[%clk 0:02:24.2]} 19...
Ne8 {[%clk 0:01:54.4]} 20. Rfd1 {[%clk 0:02:21.9]} 20... Rdb7 {[%clk 0:01:52.7]}
21. b6 {[%clk 0:02:10.4]} 21... Bf8 {[%clk 0:01:42]} 22. Bxa6 {[%clk 0:02:08.2]}
22... Re7 {[%clk 0:01:38.7]} 23. a5 {[%clk 0:02:04.1]} 23... Bb7 {[%clk
0:01:37.6]} 24. Bxb7 {[%clk 0:02:02.8]} 24... Rbxb7 {[%clk 0:01:38.5]} 25. Nd5
{[%clk 0:02:02.8]} 25... Re6 {[%clk 0:01:34.3]} 26. a6 {[%clk 0:02:00.4]} 26...
Rb8 {[%clk 0:01:30.3]} 27. a7 {[%clk 0:01:59.6]} 27... Ra8 {[%clk 0:01:27.9]}
28. b7 {[%clk 0:01:59.1]} 1-0

[Event "Early-Titled-Tuesday-Blitz-May-07-2024"]
[Site "Chess.com"]
[Date "2024.05.07"]
[Round "4"]
[White "WilsonPalencia21"]
[Black "Chessdude1987"]
[Result "1-0"]
[WhiteElo "2545"]
[BlackElo "2365"]
[TimeControl "180+1"]
[EndTime "8:39:40 PDT"]
[Termination "WilsonPalencia21 won by checkmate"]

1. d4 {[%clk 0:03:00.9]} 1... e6 {[%clk 0:03:00.3]} 2. c4 {[%clk 0:03:00.2]}
2... f5 {[%clk 0:03:01]} 3. Nf3 {[%clk 0:02:59.7]} 3... Nf6 {[%clk 0:03:01.5]}
4. g3 {[%clk 0:02:59.9]} 4... Be7 {[%clk 0:03:02]} 5. Bg2 {[%clk 0:03:00.5]}
5... O-O {[%clk 0:03:02.7]} 6. O-O {[%clk 0:03:01.4]} 6... d6 {[%clk 0:03:03.4]}
7. Nc3 {[%clk 0:03:00.9]} 7... Ne4 {[%clk 0:03:04]} 8. Qc2 {[%clk 0:03:00.5]}
8... Nxc3 {[%clk 0:03:04.1]} 9. bxc3 {[%clk 0:03:01]} 9... Nc6 {[%clk
0:03:00.3]} 10. e4 {[%clk 0:02:58.5]} 10... e5 {[%clk 0:02:54.3]} 11. d5 {[%clk
0:02:43.1]} 11... Na5 {[%clk 0:02:45.8]} 12. c5 {[%clk 0:02:43]} 12... fxe4
{[%clk 0:02:29.5]} 13. Qxe4 {[%clk 0:02:40.8]} 13... Bf5 {[%clk 0:02:29.3]} 14.
Qb4 {[%clk 0:02:35.4]} 14... c6 {[%clk 0:02:26.8]} 15. dxc6 {[%clk 0:02:29.3]}
15... bxc6 {[%clk 0:02:15.6]} 16. cxd6 {[%clk 0:02:19.4]} 16... Bxd6 {[%clk
0:02:15]} 17. Qa4 {[%clk 0:02:15.3]} 17... Qc7 {[%clk 0:01:56.8]} 18. Be3 {[%clk
0:02:03.1]} 18... Bd3 {[%clk 0:01:52.9]} 19. Rfd1 {[%clk 0:01:57.9]} 19... e4
{[%clk 0:01:52.6]} 20. Ng5 {[%clk 0:01:47.6]} 20... Nc4 {[%clk 0:01:43.3]} 21.
Rxd3 {[%clk 0:01:40.3]} 21... exd3 {[%clk 0:01:04.8]} 22. Qxc4+ {[%clk 0:01:40]}
22... Kh8 {[%clk 0:01:05]} 23. Qxd3 {[%clk 0:01:39.9]} 23... Rae8 {[%clk
0:00:58.3]} 24. Qxh7# {[%clk 0:01:38.3]} 1-0

[Event "Early-Titled-Tuesday-Blitz-May-07-2024"]
[Site "Chess.com"]
[Date "2024.05.07"]
[Round "4"]
[White "DarZay"]
[Black "viktorgen2021"]
[Result "1/2-1/2"]
[WhiteElo "2334"]
[BlackElo "2503"]
[TimeControl "180+1"]
[EndTime "8:39:44 PDT"]
[Termination "Game drawn by repetition"]

1. e4 {[%clk 0:02:55.3]} 1... g6 {[%clk 0:02:59.2]} 2. d4 {[%clk 0:02:53.3]}
2... Bg7 {[%clk 0:02:59.5]} 3. f4 {[%clk 0:02:51.8]} 3... d6 {[%clk 0:02:58.8]}
4. Nf3 {[%clk 0:02:51.5]} 4... Nf6 {[%clk 0:02:58]} 5. e5 {[%clk 0:02:51.1]}
5... dxe5 {[%clk 0:02:57.3]} 6. fxe5 {[%clk 0:02:50.9]} 6... Nd5 {[%clk
0:02:56.7]} 7. c4 {[%clk 0:02:50.5]} 7... Nb6 {[%clk 0:02:46.7]} 8. Nc3 {[%clk
0:02:50.2]} 8... O-O {[%clk 0:02:45.5]} 9. Bd3 {[%clk 0:02:48.6]} 9... Bg4
{[%clk 0:02:43]} 10. Be3 {[%clk 0:02:48.1]} 10... Nc6 {[%clk 0:02:40.7]} 11. Ne2
{[%clk 0:02:45.2]} 11... f6 {[%clk 0:02:27.1]} 12. exf6 {[%clk 0:02:34.1]} 12...
Bxf6 {[%clk 0:02:20.5]} 13. O-O {[%clk 0:02:20.5]} 13... Bxf3 {[%clk 0:02:13]}
14. Rxf3 {[%clk 0:02:20.5]} 14... Nxd4 {[%clk 0:01:51.1]} 15. Nxd4 {[%clk
0:02:16.5]} 15... Bxd4 {[%clk 0:01:49.4]} 16. Rxf8+ {[%clk 0:02:15.9]} 16...
Kxf8 {[%clk 0:01:50.3]} 17. Qf3+ {[%clk 0:02:04.3]} 17... Kg8 {[%clk 0:01:35.2]}
18. Rf1 {[%clk 0:02:02.8]} 18... Bxe3+ {[%clk 0:01:33.4]} 19. Qxe3 {[%clk
0:02:01.3]} 19... e5 {[%clk 0:01:25.1]} 20. Qxe5 {[%clk 0:01:41.9]} 20... Qxd3
{[%clk 0:01:18.2]} 21. Qe6+ {[%clk 0:01:41.1]} 21... Kg7 {[%clk 0:01:18.2]} 22.
Qe7+ {[%clk 0:01:35.2]} 22... Kh6 {[%clk 0:01:12.9]} 23. Qh4+ {[%clk 0:01:35]}
23... Kg7 {[%clk 0:01:13]} 24. Qe7+ {[%clk 0:01:35.7]} 24... Kh6 {[%clk
0:01:05.6]} 25. Qh4+ {[%clk 0:01:33.3]} 25... Kg7 {[%clk 0:01:05.6]} 26. Qe7+
{[%clk 0:01:33]} 1/2-1/2

[Event "Early-Titled-Tuesday-Blitz-May-07-2024"]
[Site "Chess.com"]
[Date "2024.05.07"]
[Round "4"]
[White "Noki102"]
[Black "Suleyman_Chess06"]
[Result "0-1"]
[WhiteElo "2560"]
[BlackElo "2790"]
[TimeControl "180+1"]
[EndTime "8:39:45 PDT"]
[Termination "Suleyman_Chess06 won by checkmate"]

1. d4 {[%clk 0:02:59.1]} 1... Nf6 {[%clk 0:02:58.7]} 2. Nc3 {[%clk 0:02:59.3]}
2... d5 {[%clk 0:02:58.5]} 3. Bf4 {[%clk 0:02:59.8]} 3... c6 {[%clk 0:02:58.9]}
4. e3 {[%clk 0:02:56.2]} 4... g6 {[%clk 0:02:59.1]} 5. h4 {[%clk 0:02:54.9]}
5... Bg7 {[%clk 0:02:59.3]} 6. Nf3 {[%clk 0:02:52.3]} 6... O-O {[%clk
0:02:59.2]} 7. Ne5 {[%clk 0:02:51.8]} 7... Nbd7 {[%clk 0:02:57.3]} 8. Bd3 {[%clk
0:02:48.8]} 8... Nxe5 {[%clk 0:02:57.5]} 9. dxe5 {[%clk 0:02:48.5]} 9... Nd7
{[%clk 0:02:56.2]} 10. e6 {[%clk 0:02:42.6]} 10... fxe6 {[%clk 0:02:54.3]} 11.
h5 {[%clk 0:02:43.1]} 11... e5 {[%clk 0:02:49.8]} 12. Bg5 {[%clk 0:02:17.4]}
12... e4 {[%clk 0:02:09.7]} 13. Nxe4 {[%clk 0:02:15]} 13... Ne5 {[%clk
0:02:09.8]} 14. hxg6 {[%clk 0:01:54.1]} 14... dxe4 {[%clk 0:01:56.2]} 15. Rxh7
{[%clk 0:01:11.5]} 15... Bg4 {[%clk 0:01:37.8]} 16. Bc4+ {[%clk 0:00:56.9]}
16... Nxc4 {[%clk 0:01:28.9]} 17. Qxg4 {[%clk 0:00:55.6]} 17... Qd2+ {[%clk
0:01:28.4]} 18. Kf1 {[%clk 0:00:52.8]} 18... Qxf2# {[%clk 0:01:29]} 0-1

[Event "Early-Titled-Tuesday-Blitz-May-07-2024"]
[Site "Chess.com"]
[Date "2024.05.07"]
[Round "4"]
[White "RobRam"]
[Black "Zurability"]
[Result "0-1"]
[WhiteElo "2548"]
[BlackElo "2742"]
[TimeControl "180+1"]
[EndTime "8:39:55 PDT"]
[Termination "Zurability won by resignation"]

1. d4 {[%clk 0:03:00.9]} 1... Nf6 {[%clk 0:02:57.5]} 2. e3 {[%clk 0:03:01.4]}
2... b6 {[%clk 0:02:53.7]} 3. f4 {[%clk 0:02:59.9]} 3... Bb7 {[%clk 0:02:54.6]}
4. Nf3 {[%clk 0:02:59.6]} 4... c5 {[%clk 0:02:39.3]} 5. c3 {[%clk 0:02:58.8]}
5... g6 {[%clk 0:02:22.7]} 6. Bd3 {[%clk 0:02:57.9]} 6... Bg7 {[%clk 0:02:23.4]}
7. O-O {[%clk 0:02:58.4]} 7... O-O {[%clk 0:02:23.9]} 8. Nbd2 {[%clk 0:02:58.3]}
8... d5 {[%clk 0:02:23.1]} 9. Ne5 {[%clk 0:02:58.2]} 9... e6 {[%clk 0:02:22.5]}
10. Ndf3 {[%clk 0:02:55.1]} 10... Ne4 {[%clk 0:02:19.7]} 11. Bd2 {[%clk
0:02:55.1]} 11... f6 {[%clk 0:02:10.8]} 12. Ng4 {[%clk 0:02:54.4]} 12... Nd7
{[%clk 0:02:09.1]} 13. Be1 {[%clk 0:02:47.3]} 13... Qc7 {[%clk 0:01:57.3]} 14.
Nf2 {[%clk 0:02:44.7]} 14... e5 {[%clk 0:01:55.4]} 15. fxe5 {[%clk 0:02:36.2]}
15... fxe5 {[%clk 0:01:52.9]} 16. Nxe4 {[%clk 0:02:35.4]} 16... dxe4 {[%clk
0:01:47]} 17. Bc4+ {[%clk 0:02:35.5]} 17... Kh8 {[%clk 0:01:47.1]} 18. Ng5
{[%clk 0:02:35.1]} 18... Rxf1+ {[%clk 0:01:47.4]} 19. Kxf1 {[%clk 0:02:34.5]}
19... Rf8+ {[%clk 0:01:43.3]} 20. Kg1 {[%clk 0:02:26.5]} 20... cxd4 {[%clk
0:01:36.8]} 21. Nf7+ {[%clk 0:02:13.6]} 21... Rxf7 {[%clk 0:01:24.9]} 22. Bxf7
{[%clk 0:02:14.5]} 22... d3 {[%clk 0:01:16.5]} 23. Qg4 {[%clk 0:02:05.5]} 23...
Nf6 {[%clk 0:01:12.4]} 24. Qe6 {[%clk 0:02:04.8]} 24... Bd5 {[%clk 0:01:06.8]}
25. Qxf6 {[%clk 0:01:30.1]} 25... Bxf6 {[%clk 0:01:03.1]} 26. Bxd5 {[%clk
0:01:30.8]} 26... Qc5 {[%clk 0:01:02.8]} 0-1

[Event "Early-Titled-Tuesday-Blitz-May-07-2024"]
[Site "Chess.com"]
[Date "2024.05.07"]
[Round "4"]
[White "LLariMarc"]
[Black "Bwert2602"]
[Result "1-0"]
[WhiteElo "2518"]
[BlackElo "2234"]
[TimeControl "180+1"]
[EndTime "8:39:56 PDT"]
[Termination "LLariMarc won on time"]

1. e4 {[%clk 0:03:00.9]} 1... d6 {[%clk 0:02:58.1]} 2. d4 {[%clk 0:03:00.7]}
2... Nf6 {[%clk 0:02:59]} 3. Nc3 {[%clk 0:03:01.1]} 3... g6 {[%clk 0:02:59.6]}
4. Bg5 {[%clk 0:03:01.2]} 4... Bg7 {[%clk 0:03:00]} 5. e5 {[%clk 0:03:01.1]}
5... Nfd7 {[%clk 0:02:53.3]} 6. exd6 {[%clk 0:02:59.1]} 6... cxd6 {[%clk
0:02:54.2]} 7. Qd2 {[%clk 0:02:59.5]} 7... O-O {[%clk 0:02:53.3]} 8. h4 {[%clk
0:02:57.3]} 8... Qa5 {[%clk 0:02:47.5]} 9. Nf3 {[%clk 0:02:54.2]} 9... e5 {[%clk
0:02:36]} 10. Bh6 {[%clk 0:02:39.4]} 10... exd4 {[%clk 0:02:32.4]} 11. Bxg7
{[%clk 0:02:38.9]} 11... Kxg7 {[%clk 0:02:30.8]} 12. Qxd4+ {[%clk 0:02:38.7]}
12... Ne5 {[%clk 0:02:27.3]} 13. O-O-O {[%clk 0:02:36.3]} 13... Nc6 {[%clk
0:02:24.9]} 14. Qf4 {[%clk 0:02:32.5]} 14... Bg4 {[%clk 0:02:21.8]} 15. h5
{[%clk 0:02:28.1]} 15... Nxf3 {[%clk 0:01:53.7]} 16. Qxg4 {[%clk 0:02:16.5]}
16... Nfe5 {[%clk 0:01:32]} 17. Qf4 {[%clk 0:02:16.6]} 17... Rad8 {[%clk
0:00:27]} 18. h6+ {[%clk 0:02:12.4]} 18... Kg8 {[%clk 0:00:00.5]} 19. Qf6 {[%clk
0:02:13.3]} 1-0

[Event "Early-Titled-Tuesday-Blitz-May-07-2024"]
[Site "Chess.com"]
[Date "2024.05.07"]
[Round "4"]
[White "Ural_bogatyr"]
[Black "Byniolus"]
[Result "0-1"]
[WhiteElo "2571"]
[BlackElo "2811"]
[TimeControl "180+1"]
[EndTime "8:40:10 PDT"]
[Termination "Byniolus won by resignation"]

1. d4 {[%clk 0:03:00.9]} 1... d6 {[%clk 0:02:59.7]} 2. e4 {[%clk 0:03:00]} 2...
Nf6 {[%clk 0:02:59.7]} 3. Nc3 {[%clk 0:02:59.6]} 3... c6 {[%clk 0:03:00.1]} 4.
Nf3 {[%clk 0:02:55.2]} 4... Bg4 {[%clk 0:02:59.2]} 5. Be3 {[%clk 0:02:49.9]}
5... e6 {[%clk 0:02:59.3]} 6. Be2 {[%clk 0:02:45.7]} 6... Be7 {[%clk 0:02:58.9]}
7. h3 {[%clk 0:02:45]} 7... Bh5 {[%clk 0:02:58.6]} 8. a4 {[%clk 0:02:43.9]} 8...
d5 {[%clk 0:02:58.8]} 9. e5 {[%clk 0:02:43.7]} 9... Nfd7 {[%clk 0:02:58.9]} 10.
O-O {[%clk 0:02:30.8]} 10... c5 {[%clk 0:02:58.5]} 11. Nb1 {[%clk 0:02:19.2]}
11... cxd4 {[%clk 0:02:56.7]} 12. Bxd4 {[%clk 0:02:18.8]} 12... Nc6 {[%clk
0:02:56]} 13. Re1 {[%clk 0:02:16.4]} 13... O-O {[%clk 0:02:32.7]} 14. c3 {[%clk
0:02:09.9]} 14... Qc7 {[%clk 0:02:30.5]} 15. Bd3 {[%clk 0:02:04.2]} 15... Bxf3
{[%clk 0:02:03.5]} 16. Qxf3 {[%clk 0:02:01.5]} 16... Nxd4 {[%clk 0:02:02.1]} 17.
cxd4 {[%clk 0:02:01]} 17... Qb6 {[%clk 0:02:02.6]} 18. Qg4 {[%clk 0:01:48.1]}
18... Qxb2 {[%clk 0:01:57.3]} 19. h4 {[%clk 0:01:10.1]} 19... Qxa1 {[%clk
0:01:51.2]} 20. Re3 {[%clk 0:01:06.4]} 20... Rfc8 {[%clk 0:01:34.7]} 21. Rg3
{[%clk 0:01:04.5]} 21... g6 {[%clk 0:01:28.5]} 22. h5 {[%clk 0:01:04.4]} 22...
Rc1+ {[%clk 0:01:09.5]} 23. Kh2 {[%clk 0:01:04.1]} 23... Rxb1 {[%clk 0:01:05.2]}
0-1

[Event "Early-Titled-Tuesday-Blitz-May-07-2024"]
[Site "Chess.com"]
[Date "2024.05.07"]
[Round "4"]
[White "Mischuk_D"]
[Black "bazar-wokzal"]
[Result "1-0"]
[WhiteElo "2808"]
[BlackElo "2571"]
[TimeControl "180+1"]
[EndTime "8:40:17 PDT"]
[Termination "Mischuk_D won by resignation"]

1. d4 {[%clk 0:03:00.9]} 1... Nf6 {[%clk 0:02:57.7]} 2. c4 {[%clk 0:03:00.4]}
2... Nc6 {[%clk 0:02:56.5]} 3. Nc3 {[%clk 0:02:55.1]} 3... e5 {[%clk 0:02:56.2]}
4. d5 {[%clk 0:02:55.8]} 4... Ne7 {[%clk 0:02:56.1]} 5. h4 {[%clk 0:02:56.5]}
5... Neg8 {[%clk 0:02:56]} 6. a3 {[%clk 0:02:51]} 6... Bc5 {[%clk 0:02:55.1]} 7.
e3 {[%clk 0:02:45.7]} 7... a5 {[%clk 0:02:54.1]} 8. b3 {[%clk 0:02:45]} 8... d6
{[%clk 0:02:52.8]} 9. Bb2 {[%clk 0:02:45.3]} 9... c6 {[%clk 0:02:49.7]} 10. dxc6
{[%clk 0:02:34.6]} 10... bxc6 {[%clk 0:02:48.8]} 11. Na4 {[%clk 0:02:35.2]}
11... Ba7 {[%clk 0:02:46.1]} 12. c5 {[%clk 0:02:35.6]} 12... Bxc5 {[%clk
0:02:36.9]} 13. Nxc5 {[%clk 0:02:35.3]} 13... dxc5 {[%clk 0:02:37]} 14. Qxd8+
{[%clk 0:02:36]} 14... Kxd8 {[%clk 0:02:36.6]} 15. Bxe5 {[%clk 0:02:36.6]} 15...
Be6 {[%clk 0:02:36.1]} 16. Bc4 {[%clk 0:02:25.1]} 16... Ke7 {[%clk 0:02:32.3]}
17. Nf3 {[%clk 0:02:22.5]} 17... a4 {[%clk 0:02:29.6]} 18. Bxe6 {[%clk
0:02:12.2]} 18... Kxe6 {[%clk 0:02:28.9]} 19. bxa4 {[%clk 0:02:12.8]} 19... Rxa4
{[%clk 0:02:28]} 20. O-O {[%clk 0:02:12.9]} 20... Ne7 {[%clk 0:02:21.6]} 21.
Rfc1 {[%clk 0:02:11.6]} 21... c4 {[%clk 0:02:18.5]} 22. Bc3 {[%clk 0:02:01.3]}
22... Ned5 {[%clk 0:02:15.4]} 23. Nd4+ {[%clk 0:01:57.6]} 23... Kd7 {[%clk
0:02:15.1]} 24. Nf5 {[%clk 0:01:53.4]} 24... Rha8 {[%clk 0:02:11]} 25. Nxg7
{[%clk 0:01:48.1]} 25... Rxa3 {[%clk 0:02:10.3]} 26. Rxa3 {[%clk 0:01:48.7]}
26... Rxa3 {[%clk 0:02:10.3]} 27. Bxf6 {[%clk 0:01:49.2]} 27... Nxf6 {[%clk
0:02:10.2]} 28. Rxc4 {[%clk 0:01:49.7]} 28... Ra5 {[%clk 0:02:06.6]} 29. g3
{[%clk 0:01:46]} 29... c5 {[%clk 0:02:01.1]} 30. Kg2 {[%clk 0:01:43.7]} 30...
Kc6 {[%clk 0:02:00.9]} 31. Rf4 {[%clk 0:01:43.3]} 31... Nd5 {[%clk 0:01:58.5]}
32. Rxf7 {[%clk 0:01:43]} 32... c4 {[%clk 0:01:58.8]} 33. Ne6 {[%clk 0:01:43.6]}
33... c3 {[%clk 0:01:58]} 34. Nd4+ {[%clk 0:01:43.6]} 34... Kd6 {[%clk
0:01:53.3]} 35. Rxh7 {[%clk 0:01:43.1]} 35... Ra2 {[%clk 0:01:51.7]} 36. Kf3
{[%clk 0:01:41.8]} 36... c2 {[%clk 0:01:48.6]} 37. Rh6+ {[%clk 0:01:41.7]} 37...
Kd7 {[%clk 0:01:46.8]} 38. Rc6 {[%clk 0:01:39.7]} 38... Nb4 {[%clk 0:01:46.3]}
39. Rc4 {[%clk 0:01:39.7]} 39... Rb2 {[%clk 0:01:45.4]} 40. h5 {[%clk
0:01:39.8]} 40... Kd6 {[%clk 0:01:45]} 41. h6 {[%clk 0:01:39.4]} 41... Kd5
{[%clk 0:01:43.6]} 42. Rc8 {[%clk 0:01:38.7]} 42... Nd3 {[%clk 0:01:33.8]} 43.
Nxc2 {[%clk 0:01:27.8]} 1-0

[Event "Early-Titled-Tuesday-Blitz-May-07-2024"]
[Site "Chess.com"]
[Date "2024.05.07"]
[Round "4"]
[White "PenguinPacks"]
[Black "JiiHart"]
[Result "1-0"]
[WhiteElo "2467"]
[BlackElo "2163"]
[TimeControl "180+1"]
[EndTime "8:40:21 PDT"]
[Termination "PenguinPacks won by resignation"]

1. e4 {[%clk 0:03:00.9]} 1... c5 {[%clk 0:02:59.5]} 2. Nf3 {[%clk 0:03:00.8]}
2... Nc6 {[%clk 0:02:58.5]} 3. Bb5 {[%clk 0:03:00.7]} 3... e6 {[%clk 0:02:58.2]}
4. O-O {[%clk 0:03:00.4]} 4... Nge7 {[%clk 0:02:57.9]} 5. Re1 {[%clk 0:03:01.1]}
5... a6 {[%clk 0:02:54.4]} 6. Bf1 {[%clk 0:03:01.5]} 6... d6 {[%clk 0:02:53.4]}
7. c3 {[%clk 0:03:01.7]} 7... Ng6 {[%clk 0:02:50.7]} 8. d4 {[%clk 0:03:01.9]}
8... cxd4 {[%clk 0:02:49.3]} 9. cxd4 {[%clk 0:03:02.8]} 9... Be7 {[%clk
0:02:49.4]} 10. Nc3 {[%clk 0:03:01.7]} 10... O-O {[%clk 0:02:48.8]} 11. Qe2
{[%clk 0:03:01.4]} 11... e5 {[%clk 0:02:48.5]} 12. d5 {[%clk 0:03:00.4]} 12...
Nb8 {[%clk 0:02:47.2]} 13. a4 {[%clk 0:02:56.4]} 13... Nd7 {[%clk 0:02:45.8]}
14. a5 {[%clk 0:02:52.9]} 14... b6 {[%clk 0:02:40.1]} 15. axb6 {[%clk
0:02:53.8]} 15... Qxb6 {[%clk 0:02:32]} 16. Be3 {[%clk 0:02:53.5]} 16... Qb8
{[%clk 0:02:04.5]} 17. g3 {[%clk 0:02:41.1]} 17... a5 {[%clk 0:01:58.7]} 18. Ra2
{[%clk 0:02:29.5]} 18... Ba6 {[%clk 0:01:57.1]} 19. Qd2 {[%clk 0:02:25]} 19...
Bxf1 {[%clk 0:01:56.4]} 20. Kxf1 {[%clk 0:02:24.4]} 20... Rd8 {[%clk 0:01:54.6]}
21. Rea1 {[%clk 0:02:23.5]} 21... Nc5 {[%clk 0:01:15]} 22. Bxc5 {[%clk
0:02:19.2]} 22... dxc5 {[%clk 0:01:15.9]} 23. Rxa5 {[%clk 0:02:17.5]} 23... Rxa5
{[%clk 0:01:12]} 24. Rxa5 {[%clk 0:02:18.4]} 24... Qb4 {[%clk 0:00:58.2]} 25.
Rb5 {[%clk 0:02:02.9]} 25... Qc4+ {[%clk 0:00:52.2]} 26. Kg2 {[%clk 0:02:01.8]}
26... Ra8 {[%clk 0:00:10.6]} 27. b3 {[%clk 0:01:59]} 1-0